[Event "FIDE WCCC Girls-12 2024"]
[Site "Montesilvano"]
[Date "2024.11.18"]
[Round "4.13"]
[White "Gailevska, Milana"]
[Black "Tran Le Vy"]
[Result "0-1"]
[ECO "D02"]
[WhiteElo "1698"]
[BlackElo "1854"]
[Annotator "NA RC"]
[PlyCount "68"]
[EventDate "2024.11.18"]
[EventType "swiss"]
[EventCountry "ITA"]
[SourceTitle "playchess.com"]
[Source "ChessBase"]
[SourceQuality "1"]
[TimeControl "5400+30"]

1. d4 {[%emt 0:00:03]} d5 {[%emt 0:00:16]} 2. Bf4 {[%emt 0:00:08]} c5 {[%emt 0:00:12]} 3. e3 {[%emt 0:00:17]} Nc6 {[%emt 0:00:08]} 4. c3 {[%emt 0:01:02]} cxd4 {[%emt 0:00:42]} 5. exd4 {[%emt 0:00:07]} Nf6 {[%emt 0:00:07]} 6. Nd2 {[%emt 0:00:20]} g6 {[%emt 0:00:42]} 7. h3 {[%emt 0:00:46]} Bg7 {[%emt 0:00:24]} 8. Ngf3 {[%emt 0:00:30]} O-O {[%emt 0:04:49]} 9. Be2 {[%emt 0:00:38]} b6 {[%emt 0:02:25]} 10. O-O {[%emt 0:00:42]} Bb7 {[%emt 0:00:14]} 11. Re1 {[%emt 0:01:35]} Ne4 {[%emt 0:13:18]} 12. Bd3 {[%emt 0:09:34]} f5 {[%emt 0:08:39]} 13. Ng5 {[%emt 0:21:29]} Qd7 {[%emt 0:18:21]} 14. f3 {[%emt 0:02:33]} h6 {[%emt 0:08:53]} 15. fxe4 {[%emt 0:08:48]} fxe4 {[%emt 0:04:10]} 16. Ngxe4 {[%emt 0:03:00]} dxe4 {[%emt 0:00:54]} 17. Bc4+ {[%emt 0:00:11]} Kh7 {[%emt 0:01:59]} 18. Bg3 {[%emt 0:01:51]} Nxd4 {[%emt 0:10:21]} 19. Nxe4 {[%emt 0:05:10]} Qc6 {[%emt 0:02:16]} 20. cxd4 {[%emt 0:04:33]} Qxc4 {[%emt 0:00:16]} 21. Kh1 {[%emt 0:13:34]} Rad8 {[%emt 0:05:09]} 22. Rc1 {[%emt 0:06:28]} Qb4 {[%emt 0:05:54]} 23. Qe2 {[%emt 0:02:31]} Rxd4 {[%emt 0:00:58]} 24. Nc3 {[%emt 0:02:40]} Rd7 {[%emt 0:00:29]} 25. Qe6 {[%emt 0:01:49]} Rd2 {[%emt 0:01:11]} 26. Qxe7 {[%emt 0:02:50]} Bxg2+ {[%emt 0:00:29]} 27. Kg1 {[%emt 0:00:10]} Qd4+ {[%emt 0:00:25]} 28. Re3 {[%emt 0:01:15]} Rf3 {[%emt 0:00:35]} 29. Rce1 {[%emt 0:01:40]} Rxg3 {[%emt 0:00:09]} 30. Kh2 {[%emt 0:02:15]} Bc6+ {[%emt 0:00:17]} 31. R3e2 {[%emt 0:03:38]} Rg2+ {[%emt 0:00:16]} 32. Rxg2 {[%emt 0:00:53]} Rxg2+ {[%emt 0:00:08]} 33. Kh1 {[%emt 0:00:05]} Rg1+ {[%emt 0:00:08]} 34. Kh2 {[%emt 0:00:14]} Qf2# {[%emt 0:00:08]} 0-1

[Event "FIDE WCCC Girls-12 2024"]
[Site "Montesilvano"]
[Date "2024.11.18"]
[Round "4.29"]
[White "Xikmatkhonova, Mokhinur"]
[Black "Laurincova, Timea"]
[Result "1/2-1/2"]
[ECO "B36"]
[WhiteElo "1726"]
[BlackElo "1549"]
[Annotator "NA RC"]
[PlyCount "164"]
[EventDate "2024.11.18"]
[EventType "swiss"]
[EventCountry "ITA"]
[SourceTitle "playchess.com"]
[Source "ChessBase"]
[SourceQuality "1"]
[TimeControl "5400+30"]

1. e4 {[%emt 0:00:50]} c5 {[%emt 0:00:06]} 2. Nf3 {[%emt 0:00:07]} Nc6 {[%emt 0:00:05]} 3. d4 {[%emt 0:00:04]} cxd4 {[%emt 0:00:06]} 4. Nxd4 {[%emt 0:00:04]} g6 {[%emt 0:00:11]} 5. c4 {[%emt 0:00:05]} Nf6 {[%emt 0:00:11]} 6. Nc3 {[%emt 0:00:51]} d6 {[%emt 0:00:17]} 7. Be2 {[%emt 0:08:39]} Nxd4 {[%emt 0:00:24]} 8. Qxd4 {[%emt 0:00:18]} Bg7 {[%emt 0:00:12]} 9. Be3 {[%emt 0:00:31]} O-O {[%emt 0:00:25]} 10. Qd2 {[%emt 0:00:21]} a5 {[%emt 0:02:32]} 11. f3 {[%emt 0:01:25]} a4 {[%emt 0:01:09]} 12. O-O {[%emt 0:01:55]} Qa5 {[%emt 0:00:09]} 13. Rac1 {[%emt 0:02:48]} Be6 {[%emt 0:01:24]} 14. Nd5 {[%emt 0:07:52]} Qxd2 {[%emt 0:00:26]} 15. Nxe7+ {[%emt 0:01:24]} Kh8 {[%emt 0:00:19]} 16. Bxd2 {[%emt 0:00:02]} Rfe8 {[%emt 0:00:34]} 17. Nd5 {[%emt 0:00:17]} Nxd5 {[%emt 0:01:06]} 18. cxd5 {[%emt 0:00:54]} Bxd5 {[%emt 0:00:19]} 19. Bb5 {[%emt 0:00:36]} Re5 {[%emt 0:00:39]} 20. Bc3 {[%emt 0:00:30]} Bxa2 {[%emt 0:01:25]} 21. Bxe5 {[%emt 0:02:06]} Bxe5 {[%emt 0:00:34]} 22. Rc2 {[%emt 0:02:06]} Bb3 {[%emt 0:02:04]} 23. Rd2 {[%emt 0:02:43]} Ra5 {[%emt 0:01:51]} 24. Bd3 {[%emt 0:00:40]} b5 {[%emt 0:01:09]} 25. g3 {[%emt 0:15:08]} b4 {[%emt 0:03:36]} 26. Bb1 {[%emt 0:06:29]} a3 {[%emt 0:05:44]} 27. bxa3 {[%emt 0:01:42]} bxa3 {[%emt 0:00:16]} 28. Ba2 {[%emt 0:00:26]} Bxa2 {[%emt 0:02:18]} 29. Rxa2 {[%emt 0:00:01]} Bb2 {[%emt 0:00:13]} 30. Rd1 {[%emt 0:06:55]} Ra6 {[%emt 0:00:25]} 31. Rd2 {[%emt 0:05:16]} Rc6 {[%emt 0:01:19]} 32. Kf2 {[%emt 0:06:07]} Kg7 {[%emt 0:00:39]} 33. Ke2 {[%emt 0:02:38]} Kf6 {[%emt 0:01:35]} 34. f4 {[%emt 0:00:30]} Ke6 {[%emt 0:02:11]} 35. Raxb2 {[%emt 0:06:10]} axb2 {[%emt 0:00:36]} 36. Rxb2 {[%emt 0:00:01]} f5 {[%emt 0:01:55]} 37. exf5+ {[%emt 0:02:17]} Kxf5 {[%emt 0:00:15]} 38. Kd3 {[%emt 0:02:33]} Rc7 {[%emt 0:02:15]} 39. Kd4 {[%emt 0:00:36]} Ke6 {[%emt 0:01:21]} 40. h3 {[%emt 0:03:27]} h5 {[%emt 0:03:27]} 41. Re2+ {[%emt 0:04:26]} Kf5 {[%emt 0:08:49]} 42. Ra2 {[%emt 0:07:43]} Rc5 {[%emt 0:03:16]} 43. Ra3 {[%emt 0:00:56]} h4 {[%emt 0:01:53]} 44. Rf3 {[%emt 0:00:44]} hxg3 {[%emt 0:05:55]} 45. Rxg3 {[%emt 0:00:06]} Kf6 {[%emt 0:00:17]} 46. Rd3 {[%emt 0:01:20]} Kf5 {[%emt 0:01:28]} 47. Rg3 {[%emt 0:00:31]} Kf6 {[%emt 0:01:09]} 48. Rd3 {[%emt 0:00:06]} Ra5 {[%emt 0:06:20]} 49. Ke4 {[%emt 0:00:50]} Ke6 {[%emt 0:02:14]} 50. Kf3 {[%emt 0:00:48]} Rh5 {[%emt 0:04:00]} 51. Kg4 {[%emt 0:00:30]} d5 {[%emt 0:00:33]} 52. Re3+ {[%emt 0:00:08]} Kf6 {[%emt 0:01:42]} 53. Re8 {[%emt 0:00:53]} Kf7 {[%emt 0:05:37]} 54. Rd8 {[%emt 0:00:25]} Rf5 {[%emt 0:03:32]} 55. Rd6 {[%emt 0:00:28]} Kg7 {[%emt 0:02:17]} 56. Rd8 {[%emt 0:00:34]} Rh5 {[%emt 0:00:57]} 57. Rd6 {[%emt 0:00:33]} Kf7 {[%emt 0:00:39]} 58. Ra6 {[%emt 0:00:27]} Rh6 {[%emt 0:01:17]} 59. Rd6 {[%emt 0:00:23]} Rh5 {[%emt 0:01:43]} 60. Ra6 {[%emt 0:00:06]} Kg7 {[%emt 0:00:58]} 61. Ra7+ {[%emt 0:00:41]} Kh6 {[%emt 0:00:26]} 62. Rf7 {[%emt 0:00:51]} d4 {[%emt 0:05:05]} 63. Rd7 {[%emt 0:00:10]} Ra5 {[%emt 0:00:45]} 64. Rxd4 {[%emt 0:00:01]} Rb5 {[%emt 0:00:17]} 65. Rc4 {[%emt 0:01:10]} Rb1 {[%emt 0:01:33]} 66. Rc3 {[%emt 0:00:35]} Rg1+ {[%emt 0:00:30]} 67. Rg3 {[%emt 0:00:11]} Rb1 {[%emt 0:00:14]} 68. Rg2 {[%emt 0:00:14]} Rb5 {[%emt 0:00:20]} 69. Rc2 {[%emt 0:00:45]} Rb1 {[%emt 0:00:15]} 70. Rc3 {[%emt 0:00:15]} Rg1+ {[%emt 0:00:23]} 71. Rg3 {[%emt 0:00:30]} Rb1 {[%emt 0:00:14]} 72. Rg2 {[%emt 0:01:13]} Rb5 {[%emt 0:00:12]} 73. h4 {[%emt 0:00:23]} Rc5 {[%emt 0:01:00]} 74. Rg1 {[%emt 0:00:09]} Rb5 {[%emt 0:00:30]} 75. Re1 {[%emt 0:00:25]} Rc5 {[%emt 0:01:57]} 76. Re5 {[%emt 0:01:01]} Rc1 {[%emt 0:00:08]} 77. Re3 {[%emt 0:00:04]} Rg1+ {[%emt 0:00:18]} 78. Rg3 {[%emt 0:00:37]} Rc1 {[%emt 0:00:19]} 79. Rg2 {[%emt 0:00:15]} Rc5 {[%emt 0:00:20]} 80. Rg1 {[%emt 0:00:10]} Rb5 {[%emt 0:00:12]} 81. Rh1 {[%emt 0:00:10]} Rc5 {[%emt 0:00:49]} 82. Rb1 {[%emt 0:00:27]} Ra5 {[%emt 0:15:25]} 1/2-1/2